fUST/lending_fUST_20250608
["ID","MTS","AMOUNT","RATE_DAILY","PERIOD"]
[365010363,1749395466075,-2331.69,0.00024109,4]
[365010364,1749395466087,-1371.39,0.00024109,4]
[365010365,1749395466098,-2071.5,0.00024109,4]
[365010366,1749395466108,-1500.11,0.00024109,4]
[365010367,1749395466118,-3000.0,0.0002411,2]
[365010368,1749395466130,-800.0,0.00024111,2]
[365010369,1749395466141,-3000.0,0.0002412,2]
[365010370,1749395466154,-3000.0,0.0002413,2]
[365010371,1749395466164,-1069.0,0.00024139,2]
[365010372,1749395466175,-3000.0,0.0002414,2]
[365010373,1749395466185,-151.0,0.0002414,7]
[365010374,1749395466197,-151.0,0.0002414,7]
[365010375,1749395466209,-1069.0,0.00024144,2]
[365010376,1749395466219,-1069.0,0.00024148,2]
[365010377,1749395466229,-3000.0,0.0002415,2]
[365010378,1749395466239,-641.58836905,0.00024156,2]
[365010379,1749395466251,-500.0,0.00024159,2]
[365010380,1749395466262,-3000.0,0.0002416,2]
[365010381,1749395466272,-1069.0,0.00024168,2]
[365010382,1749395466282,-500.0,0.00024169,2]
[365010383,1749395466292,-3000.0,0.0002417,2]
[365010384,1749395466302,-3000.0,0.0002418,2]
[365010385,1749395466312,-200.0,0.0002418,10]
[365010386,1749395466322,-3000.0,0.0002419,2]
[365010387,1749395466332,-800.0,0.00024191,2]
[365010388,1749395466343,-800.0,0.00024192,2]
[365010389,1749395466353,-4247.019867,0.000242,2]
[365010390,1749395466364,-1069.0,0.00024214,2]
[365010391,1749395466374,-618.58741617,0.00024244,2]
[365010392,1749395466384,-800.0,0.00024254,2]
[365010393,1749395466395,-500.0,0.00024277,2]
[365010394,1749395466407,-215.0738,0.00024284,2]
[365010395,1749395466418,-800.0,0.00024379,2]
[365010396,1749395466428,-500.0,0.00024383,9]
[365010397,1749395466438,-763.37,0.00024383,4]
[365010398,1749395466448,-808.44,0.00024383,4]
[365010399,1749395466460,-637.64,0.00024383,4]
[365010400,1749395466470,-1127.1,0.00024383,4]
[365010401,1749395466480,-440.0,0.00024383,4]
[365010402,1749395466490,-455.38,0.00024383,4]
[365010403,1749395466499,-531.43,0.00024383,4]
[365010404,1749395466511,-603.82,0.00024383,4]
[365010405,1749395466521,-1980.11,0.00024383,4]
[365010406,1749395466531,-1535.38,0.00024383,4]
[365010407,1749395466541,-684.11,0.00024383,4]
[365010408,1749395466551,-1597.89,0.00024383,4]
[365010409,1749395466562,-440.0,0.00024383,4]
[365010410,1749395466572,-151.0,0.00024383,7]
[365010411,1749395466583,-1701.54,0.00024383,4]
[365010412,1749395466592,-1777.47,0.00024383,4]
[365010413,1749395466603,-2331.69,0.00024383,4]
[365010414,1749395466613,-151.0,0.00024383,7]
[365010415,1749395466623,-151.0,0.00024383,7]
[365010416,1749395466634,-1371.39,0.00024383,4]
[365010417,1749395466644,-2071.5,0.00024383,4]
[365010418,1749395466655,-1500.11,0.00024383,4]
[365010419,1749395466665,-1744.0,0.0002439,3]
[365010420,1749395466675,-166.0,0.0002439,3]
[365010421,1749395466685,-200.0,0.00024399,2]
[365010422,1749395466694,-2000.0,0.000244,2]
[365010423,1749395466705,-206.0,0.00024406,2]
[365010424,1749395466720,-206.0,0.00024406,2]
[365010425,1749395466731,-768.96291163,0.00024406,2]
[365010426,1749395466741,-192139.7944284,0.0002441,5]
[365010427,1749395466751,-151.0,0.0002441,7]
[365010428,1749395466762,-151.0,0.0002441,7]
[365010429,1749395466773,-316.0017448,0.0002441,3]
[365010430,1749395466784,-151.0,0.0002441,7]
[365010431,1749395466794,-151.0,0.0002441,7]
[365010432,1749395466805,-151.0,0.0002441,7]
[365010433,1749395466814,-151.0,0.0002441,7]
[365010434,1749395466825,-151.0,0.0002441,7]
[365010435,1749395466835,-151.0,0.0002441,7]
[365010436,1749395466846,-151.0,0.0002441,7]
[365010437,1749395466856,-1565.159829,0.0002441,7]
[365010438,1749395466868,-1565.159829,0.0002441,7]
[365010439,1749395466878,-505.05556208,0.0002441,3]
[365010440,1749395466888,-182.59451303,0.00024412,2]
[365010441,1749395466898,-1570.682411,0.0002442,5]
[365010442,1749395466909,-800.0,0.00024428,2]
[365010443,1749395466919,-1000.0,0.0002444,5]
[365010444,1749395466928,-206.0,0.0002444,2]
[365010445,1749395466950,-1000.0,0.0002446,5]
[365010446,1749395466962,-500.0,0.0002447,2]
[365010447,1749395466973,-152.250207,0.00024479,7]
[365010448,1749395466984,-151.0,0.00024479,7]
[365010449,1749395466995,-151.0,0.00024479,7]
[365010450,1749395467006,-152.087997,0.00024479,7]
[365010451,1749395467016,-151.0,0.00024479,7]
[365010452,1749395467026,-151.0,0.00024479,7]
[365010453,1749395467199,-152.732074,0.00024479,7]
[365010454,1749395467212,-441.999486,0.00024479,7]
[365010455,1749395467224,-441.999486,0.00024479,7]
[365010456,1749395467234,-500.0,0.00024479,2]
[365010457,1749395467244,-500.0,0.00024479,2]
[365010458,1749395467255,-417.8986454,0.00024479,2]
[365010459,1749395467264,-500.0,0.00024479,2]
[365010460,1749395467275,-500.0,0.00024479,2]
[365010461,1749395467286,-1000.0,0.0002448,5]
[365010462,1749395467296,-312.98840601,0.00024486,11]
[365010463,1749395467306,-685.54,0.0002449,5]
[365010464,1749395467316,-1000.0,0.00024499,14]
[365010465,1749395467327,-1500.0,0.000245,2]
[365010466,1749395467339,-1500.0,0.000245,2]
[365010467,1749395467351,-1500.0,0.000245,2]
[365010468,1749395467362,-1500.0,0.000245,2]
[365010469,1749395467373,-1500.0,0.000245,2]
[365010470,1749395467384,-1500.0,0.000245,2]
[365010471,1749395467394,-1809.86,0.000245,2]
[365010472,1749395467404,-1500.0,0.000245,2]
[365010473,1749395467413,-1500.0,0.000245,2]
[365010474,1749395467424,-1500.0,0.000245,2]
[365010475,1749395467434,-1500.0,0.000245,2]
[365010476,1749395467447,-1176.0,0.000245,30]
[365010477,1749395467456,-150.0,0.000245,2]
[365010478,1749395467466,-7060.14116325,0.000245,30]
[365010479,1749395467476,-3023.83,0.000245,30]
[365010480,1749395467486,-5016.0,0.000245,14]
[365010481,1749395467496,-1002.92,0.000245,7]
[365010482,1749395467510,-28000.0,0.000245,30]
[365010483,1749395467521,-1397.64627252,0.000245,2]
[365010484,1749395467531,-1000.0,0.000245,5]
[365010485,1749395467542,-151.0,0.000245,7]
[365010486,1749395467552,-151.0,0.000245,7]
[365010487,1749395467562,-151.0,0.000245,7]
[365010488,1749395467573,-178.75468,0.000245,7]
[365010489,1749395467583,-151.0,0.000245,7]
[365010490,1749395467594,-11853.97844947,0.000245,30]
[365010491,1749395467604,-397.265082,0.000245,7]
[365010492,1749395467614,-151.0,0.000245,7]
[365010493,1749395467624,-397.265082,0.000245,7]
[365010494,1749395467634,-187.477614,0.000245,2]
[365010495,1749395467644,-151.0,0.000245,2]
[365010496,1749395467654,-151.0,0.000245,7]
[365010497,1749395467664,-151.0,0.000245,2]
[365010498,1749395467675,-272.27788924,0.000245,2]
[365010499,1749395467685,-680.590552,0.000245,7]
[365010500,1749395467695,-680.590552,0.000245,7]
[365010501,1749395467709,-5038.06489568,0.00024507,2]
[365010502,1749395467719,-152.040399,0.00024508,7]
[365010503,1749395467729,-7360.60695664,0.00024508,2]
[365010504,1749395467739,-5000.0,0.00024508,2]
[365010505,1749395467750,-5000.0,0.00024508,2]
[365010506,1749395467760,-5000.0,0.00024508,2]
[365010507,1749395467770,-5000.0,0.00024508,2]
[365010508,1749395467782,-800.0,0.00024547,2]
[365010509,1749395467792,-151.0,0.00024559,7]
[365010510,1749395467802,-151.0,0.00024559,7]
[365010511,1749395467812,-151.0,0.00024559,7]
[365010512,1749395467823,-151.0,0.00024559,7]
[365010513,1749395467835,-151.0,0.00024559,7]
[365010514,1749395467845,-151.0,0.00024559,7]
[365010515,1749395467854,-151.0,0.00024559,7]
[365010516,1749395467864,-151.0,0.00024559,7]
[365010517,1749395467875,-10000.0,0.00024559,30]
[365010518,1749395467885,-3762.0,0.00024559,30]
[365010519,1749395467895,-2661.72,0.0002456,30]
[365010520,1749395467907,-157.461155,0.0002456,7]
[365010521,1749395467919,-293.599782,0.00024561,7]
[365010522,1749395467932,-151.0,0.00024561,7]
[365010523,1749395467943,-151.0,0.00024561,7]
[365010524,1749395467954,-151.0,0.00024561,7]
[365010525,1749395467964,-223.914256,0.00024561,7]
[365010526,1749395467975,-223.914256,0.00024561,7]
[365010527,1749395467984,-223.914256,0.00024561,7]
[365010528,1749395467993,-223.914256,0.00024561,7]
[365010529,1749395468005,-223.914256,0.00024561,7]
[365010530,1749395468015,-223.914256,0.00024561,7]
[365010531,1749395468026,-223.914256,0.00024561,7]
[365010532,1749395468035,-223.914256,0.00024561,7]
[365010533,1749395468047,-223.914256,0.00024561,7]
[365010534,1749395468058,-223.914256,0.00024561,7]
[365010535,1749395468068,-223.914256,0.00024561,7]
[365010536,1749395468079,-223.914256,0.00024561,7]
[365010537,1749395468090,-223.914256,0.00024561,7]
[365010538,1749395468101,-223.914256,0.00024561,7]
[365010539,1749395468110,-223.914256,0.00024561,7]
[365010540,1749395468120,-223.914256,0.00024561,7]
[365010541,1749395468130,-223.914256,0.00024561,7]
[365010542,1749395468143,-223.914256,0.00024561,7]
[365010543,1749395468153,-223.914256,0.00024561,7]
[365010544,1749395468164,-223.914254,0.00024561,7]
[365010545,1749395468174,-151.0,0.00024561,7]
[365010546,1749395468184,-151.0,0.00024561,7]
[365010547,1749395468194,-151.0,0.00024561,7]
[365010548,1749395468203,-151.0,0.00024561,7]
[365010549,1749395468213,-151.0,0.00024561,7]
[365010550,1749395468222,-151.0,0.00024561,7]
[365010551,1749395468233,-151.0,0.00024561,7]
[365010552,1749395468242,-151.0,0.00024561,7]
[365010553,1749395468254,-151.0,0.00024561,7]
[365010554,1749395468264,-151.0,0.00024561,7]
[365010555,1749395468274,-151.0,0.00024561,7]
[365010556,1749395468284,-151.0,0.00024561,7]
[365010557,1749395468294,-151.0,0.00024561,7]
[365010558,1749395468304,-240.976976,0.00024561,7]
[365010559,1749395468313,-160.0,0.00024562,7]
[365010560,1749395468324,-165.2590144,0.00024562,5]
[365010561,1749395468334,-257.4,0.00024573,2]
[365010562,1749395468344,-194.913237,0.00024573,7]
[365010563,1749395468353,-151.0,0.00024573,7]
[365010564,1749395468363,-151.0,0.00024573,7]
[365010565,1749395468372,-151.0,0.00024573,7]
[365010566,1749395468383,-151.0,0.00024573,7]
[365010567,1749395468393,-151.0,0.00024573,7]
[365010568,1749395468403,-151.0,0.00024573,7]
[365010569,1749395468413,-151.0,0.00024573,7]
[365010570,1749395468422,-151.0,0.00024573,7]
[365010571,1749395468432,-151.0,0.00024573,7]
[365010572,1749395468442,-151.0,0.00024573,7]
[365010573,1749395468451,-151.0,0.00024573,7]
[365010574,1749395468461,-151.0,0.00024573,7]
[365010575,1749395468471,-151.0,0.00024573,7]
[365010576,1749395468481,-151.0,0.00024573,7]
[365010577,1749395468490,-151.0,0.00024573,7]
[365010578,1749395468500,-151.0,0.00024573,7]
[365010579,1749395468510,-266.026522,0.00024573,7]
[365010580,1749395468520,-151.0,0.00024573,7]
[365010581,1749395468530,-151.0,0.00024573,7]
[365010582,1749395468540,-151.0,0.00024573,7]
[365010583,1749395468550,-151.0,0.00024573,7]
[365010584,1749395468560,-151.0,0.00024573,7]
[365010585,1749395468570,-151.0,0.00024573,7]
[365010586,1749395468580,-151.0,0.00024573,7]
[365010587,1749395468590,-151.0,0.00024573,7]
[365010588,1749395468599,-151.0,0.00024573,7]
[365010589,1749395468609,-151.0,0.00024573,7]
[365010590,1749395468619,-151.0,0.00024573,7]
[365010591,1749395468630,-151.0,0.00024573,7]
[365010592,1749395468639,-151.0,0.00024573,7]
[365010593,1749395468649,-151.0,0.00024573,7]
[365010594,1749395468658,-151.0,0.00024573,7]
[365010595,1749395468668,-151.0,0.00024573,7]
[365010596,1749395468678,-151.0,0.00024573,7]
[365010597,1749395468687,-151.0,0.00024573,7]
[365010598,1749395468698,-153.73684,0.00024573,7]
[365010599,1749395468711,-151.0,0.00024573,7]
[365010600,1749395468720,-151.0,0.00024573,7]
[365010601,1749395468730,-151.0,0.00024573,7]
[365010602,1749395468739,-151.0,0.00024573,7]
[365010603,1749395468749,-151.0,0.00024573,7]
[365010604,1749395468759,-274.204699,0.00024573,7]
[365010605,1749395468768,-151.0,0.00024573,7]
[365010606,1749395468777,-151.0,0.00024573,7]
[365010607,1749395468789,-151.0,0.00024573,7]
[365010608,1749395468798,-166.356788,0.00024573,7]
[365010609,1749395468808,-151.0,0.00024573,7]
[365010610,1749395468819,-151.0,0.00024573,7]
[365010611,1749395468830,-151.0,0.00024573,7]
[365010612,1749395468841,-151.0,0.00024573,7]
[365010613,1749395468852,-151.0,0.00024573,7]
[365010614,1749395468861,-151.0,0.00024573,7]
[365010615,1749395468872,-151.0,0.00024573,7]
[365010616,1749395468881,-151.0,0.00024573,7]
[365010617,1749395468891,-151.0,0.00024573,7]
[365010618,1749395468902,-151.0,0.00024573,7]
[365010619,1749395468913,-151.0,0.00024573,7]
[365010620,1749395468923,-151.0,0.00024573,7]
[365010621,1749395468933,-151.0,0.00024573,7]
[365010622,1749395468943,-289.141964,0.00024573,7]
[365010623,1749395468954,-441.999486,0.00024573,7]
[365010624,1749395468964,-441.999486,0.00024573,7]
[365010625,1749395468974,-441.999486,0.00024573,7]
[365010626,1749395468984,-441.999486,0.00024573,7]
[365010627,1749395468993,-441.999486,0.00024573,7]
[365010628,1749395469003,-441.999486,0.00024573,7]
[365010629,1749395469014,-441.999486,0.00024573,7]
[365010630,1749395469024,-441.999486,0.00024573,7]
[365010631,1749395469034,-441.999486,0.00024573,7]
[365010632,1749395469052,-441.999486,0.00024573,7]
[365010633,1749395469066,-441.999486,0.00024573,7]
[365010634,1749395469077,-441.999486,0.00024573,7]
[365010635,1749395469086,-441.999486,0.00024573,7]
[365010636,1749395469096,-441.999486,0.00024573,7]
[365010637,1749395469106,-441.999486,0.00024573,7]
[365010638,1749395469116,-441.999476,0.00024573,7]
[365010639,1749395469127,-397.265082,0.00024573,7]
[365010640,1749395469137,-397.265082,0.00024573,7]
[365010641,1749395469146,-397.265082,0.00024573,7]
[365010642,1749395469158,-397.265082,0.00024573,7]
[365010643,1749395469167,-397.265082,0.00024573,7]
[365010644,1749395469177,-151.0,0.00024573,7]
[365010645,1749395469187,-397.265082,0.00024573,7]
[365010646,1749395469196,-151.0,0.00024573,7]
[365010647,1749395469206,-397.265082,0.00024573,7]
[365010648,1749395469215,-151.0,0.00024573,7]
[365010649,1749395469225,-151.0,0.00024573,7]
[365010650,1749395469234,-397.265082,0.00024573,7]
[365010651,1749395469244,-397.265082,0.00024573,7]
[365010652,1749395469254,-397.265082,0.00024573,7]
[365010653,1749395469264,-397.265082,0.00024573,7]
[365010654,1749395469274,-397.265082,0.00024573,7]
[365010655,1749395469283,-397.265082,0.00024573,7]
[365010656,1749395469293,-397.265091,0.00024573,7]
[365010657,1749395469303,-151.0,0.00024573,2]
[365010658,1749395469314,-151.0,0.00024573,2]
[365010659,1749395469324,-151.0,0.00024573,2]
[365010660,1749395469335,-151.0,0.00024573,2]
[365010661,1749395469345,-151.0,0.00024573,2]
[365010662,1749395469355,-151.0,0.00024573,2]
[365010663,1749395469366,-151.0,0.00024573,2]
[365010664,1749395469376,-151.0,0.00024573,7]
[365010665,1749395469386,-151.0,0.00024573,7]
[365010666,1749395469397,-151.0,0.00024573,7]
[365010667,1749395469406,-151.0,0.00024573,7]
[365010668,1749395469416,-179.329062,0.00024573,7]
[365010669,1749395469426,-151.0,0.00024573,2]
[365010670,1749395469436,-242.27535,0.00024573,2]
[365010671,1749395469446,-151.0,0.00024573,7]
[365010672,1749395469457,-151.0,0.00024573,7]
[365010673,1749395469467,-151.0,0.00024573,7]
[365010674,1749395469476,-151.0,0.00024573,7]
[365010675,1749395469487,-151.0,0.00024573,7]
[365010676,1749395469496,-151.0,0.00024573,7]
[365010677,1749395469506,-151.0,0.00024573,7]
[365010678,1749395469516,-151.0,0.00024573,7]
[365010679,1749395469526,-151.0,0.00024573,7]
[365010680,1749395469535,-151.0,0.00024573,7]
[365010681,1749395469545,-151.0,0.00024573,7]
[365010682,1749395469555,-151.0,0.00024573,7]
[365010683,1749395469565,-151.0,0.00024573,7]
[365010684,1749395469575,-274.524184,0.00024573,7]
[365010685,1749395469585,-151.0,0.00024573,7]
[365010686,1749395469595,-151.0,0.00024573,7]
[365010687,1749395469605,-151.0,0.00024573,7]
[365010688,1749395469615,-151.0,0.00024573,7]
[365010689,1749395469625,-151.0,0.00024573,7]
[365010690,1749395469635,-151.0,0.00024573,7]
[365010691,1749395469644,-151.0,0.00024573,7]
[365010692,1749395469655,-151.0,0.00024573,7]
[365010693,1749395469665,-163.25188,0.00024573,7]
[365010694,1749395469676,-288.118213,0.00024573,7]
[365010695,1749395469686,-1500.0,0.00024573,14]
[365010696,1749395469837,-1500.0,0.00024573,14]
[365010697,1749395469850,-1500.0,0.00024573,14]
[365010698,1749395469861,-1500.0,0.00024573,14]
[365010699,1749395469871,-1500.0,0.00024573,14]
[365010700,1749395469882,-1500.0,0.00024573,14]
[365010701,1749395469892,-1500.0,0.00024573,14]
[365010702,1749395469902,-1500.0,0.00024573,14]
[365010703,1749395469912,-1500.0,0.00024573,14]
[365010704,1749395469922,-1500.0,0.00024573,14]
[365010705,1749395469932,-1500.0,0.00024573,14]
[365010706,1749395469943,-1500.0,0.00024573,14]
[365010707,1749395469953,-1500.0,0.00024573,14]
[365010708,1749395469964,-1500.0,0.00024573,14]
[365010709,1749395469974,-1500.0,0.00024573,14]
[365010710,1749395469984,-1500.0,0.00024573,14]
[365010711,1749395469995,-1500.0,0.00024573,14]
[365010712,1749395470006,-1500.0,0.00024573,14]
[365010713,1749395470016,-1500.0,0.00024573,14]
[365010714,1749395470026,-1500.0,0.00024573,14]
[365010715,1749395470037,-1500.0,0.00024573,14]
[365010716,1749395470048,-1500.0,0.00024573,14]
[365010717,1749395470058,-1500.0,0.00024573,14]
[365010718,1749395470073,-1500.0,0.00024573,14]
[365010719,1749395470083,-1500.0,0.00024573,14]
[365010720,1749395470093,-1500.0,0.00024573,14]
[365010721,1749395470103,-1500.0,0.00024573,14]
[365010722,1749395470115,-1500.0,0.00024573,14]
[365010723,1749395470126,-1500.0,0.00024573,14]
[365010724,1749395470138,-1500.0,0.00024573,14]
[365010725,1749395470150,-1500.0,0.00024573,14]
[365010726,1749395470160,-1500.0,0.00024573,14]
[365010727,1749395470170,-1500.0,0.00024573,14]
[365010728,1749395470179,-1500.0,0.00024573,14]
[365010729,1749395470190,-1500.0,0.00024573,14]
[365010730,1749395470200,-1500.0,0.00024573,14]
[365010731,1749395470210,-1500.0,0.00024573,14]
[365010732,1749395470220,-1500.0,0.00024573,14]
[365010733,1749395470231,-1500.0,0.00024573,14]
[365010734,1749395470242,-1500.0,0.00024573,14]
[365010735,1749395470252,-1500.0,0.00024573,14]
[365010736,1749395470263,-1500.0,0.00024573,14]
[365010737,1749395470274,-1500.0,0.00024573,14]
[365010738,1749395470285,-1500.0,0.00024573,14]
[365010739,1749395470295,-1500.0,0.00024573,14]
[365010740,1749395470305,-1500.0,0.00024573,14]
[365010741,1749395470315,-1500.0,0.00024573,14]
[365010742,1749395470326,-1500.0,0.00024573,14]
[365010743,1749395470336,-1500.0,0.00024573,14]
[365010744,1749395470346,-1500.0,0.00024573,14]
[365010745,1749395470356,-1500.0,0.00024573,14]
[365010746,1749395470367,-1500.0,0.00024573,14]
[365010747,1749395470377,-1500.0,0.00024573,14]
[365010748,1749395470388,-1500.0,0.00024573,14]
[365010749,1749395470398,-1500.0,0.00024573,14]
[365010750,1749395470410,-1500.0,0.00024573,14]
[365010751,1749395470420,-1500.0,0.00024573,14]
[365010752,1749395470431,-1500.0,0.00024573,14]
[365010753,1749395470441,-1500.0,0.00024573,14]
[365010754,1749395470451,-1500.0,0.00024573,14]
[365010755,1749395470462,-1500.0,0.00024573,14]
[365010756,1749395470472,-1500.0,0.00024573,14]
[365010757,1749395470482,-1500.0,0.00024573,14]
[365010758,1749395470493,-1500.0,0.00024573,14]
[365010759,1749395470504,-1500.0,0.00024573,14]
[365010760,1749395470514,-1500.0,0.00024573,14]
[365010761,1749395470524,-1500.0,0.00024573,14]
[365010762,1749395470536,-1500.0,0.00024573,14]
[365010763,1749395470546,-1500.0,0.00024573,14]
[365010764,1749395470556,-1500.0,0.00024573,14]
[365010765,1749395470567,-1500.0,0.00024573,14]
[365010766,1749395470579,-1500.0,0.00024573,14]
[365010767,1749395470590,-1500.0,0.00024573,14]
[365010768,1749395470602,-1500.0,0.00024573,14]
[365010769,1749395470612,-1500.0,0.00024573,14]
[365010770,1749395470623,-1565.159829,0.00024573,7]
[365010771,1749395470634,-1500.0,0.00024573,14]
[365010772,1749395470644,-1565.159829,0.00024573,7]
[365010773,1749395470655,-1500.0,0.00024573,14]
[365010774,1749395470664,-1565.159829,0.00024573,7]
[365010775,1749395470675,-1500.0,0.00024573,14]
[365010776,1749395470686,-1565.159829,0.00024573,7]
[365010777,1749395470696,-1500.0,0.00024573,14]
[365010778,1749395470710,-1565.159829,0.00024573,7]
[365010779,1749395470721,-1500.0,0.00024573,14]
[365010780,1749395470732,-1565.159829,0.00024573,7]
[365010781,1749395470742,-1500.0,0.00024573,14]
[365010782,1749395470753,-1565.159829,0.00024573,7]
[365010783,1749395470763,-1500.0,0.00024573,14]
[365010784,1749395470773,-1500.0,0.00024573,14]
[365010785,1749395470784,-1500.0,0.00024573,14]
[365010786,1749395470793,-1500.0,0.00024573,14]
[365010787,1749395470803,-1565.159829,0.00024573,7]
[365010788,1749395470813,-1500.0,0.00024573,14]
[365010789,1749395470822,-1565.159829,0.00024573,7]
[365010790,1749395470832,-1500.0,0.00024573,14]
[365010791,1749395470842,-1565.159829,0.00024573,7]
[365010792,1749395470852,-1500.0,0.00024573,14]
[365010793,1749395470862,-1565.159829,0.00024573,7]
[365010794,1749395470873,-1500.0,0.00024573,14]
[365010795,1749395470884,-1565.159829,0.00024573,7]
[365010796,1749395470894,-1500.0,0.00024573,14]
[365010797,1749395470903,-1565.159829,0.00024573,7]
[365010798,1749395470913,-1500.0,0.00024573,14]
[365010799,1749395470923,-1565.159824,0.00024573,7]
[365010800,1749395470933,-1500.0,0.00024573,14]
[365010801,1749395470943,-1500.0,0.00024573,14]
[365010802,1749395470953,-1366.974804,0.00024573,14]
[365010803,1749395470963,-680.590552,0.00024573,7]
[365010804,1749395470973,-680.590552,0.00024573,7]
[365010805,1749395470983,-680.590552,0.00024573,7]
[365010806,1749395470993,-680.590552,0.00024573,7]
[365010807,1749395471003,-680.590552,0.00024573,7]
[365010808,1749395471014,-680.590552,0.00024573,7]
[365010809,1749395471024,-680.590552,0.00024573,7]
[365010810,1749395471034,-680.590552,0.00024573,7]
[365010811,1749395471044,-680.590552,0.00024573,7]
[365010812,1749395471054,-680.590552,0.00024573,7]
[365010813,1749395471064,-680.590552,0.00024573,7]
[365010814,1749395471074,-680.590552,0.00024573,7]
[365010815,1749395471085,-680.590552,0.00024573,7]
[365010816,1749395471095,-680.590557,0.00024573,7]
[365010817,1749395471104,-7804.89238409,0.00024573,2]
[365010818,1749395471114,-3784.0,0.00024574,30]
[365010819,1749395471125,-151.0,0.00024574,7]
[365010820,1749395471135,-151.0,0.00024574,7]
[365010821,1749395471145,-151.0,0.00024574,7]
[365010822,1749395471155,-151.0,0.00024574,7]
[365010823,1749395471165,-152.080715,0.00024574,7]
[365010824,1749395471174,-38232.34238968,0.00024575,5]
[365010825,1749395471184,-158.575084,0.00024575,2]
[365010826,1749395471194,-3656.6,0.00024599,30]
[365010827,1749395471204,-38638.60251014,0.000246,2]
[365010828,1749395471214,-1313633.49681985,0.000246,20]
[365010829,1749395471235,-160024.9733591,0.000246,20]
[365010830,1749395471247,-6304.89778528,0.000246,20]
[365010831,1749395471444,-440.0,0.00019178,2]
[365010832,1749395471454,-19.900025,0.00019178,2]
[365010833,1749395563296,150.0,0.00018983,30]
[365010834,1749395644395,150.0,0.0001881,30]
[365010835,1749395809811,150.0,0.00018054,30]
[365010836,1749395890440,150.0,0.00018071,30]
[365010837,1749395972078,150.0,0.00018061,30]
[365010839,1749396054709,150.0,0.00018212,30]
[365010841,1749396138896,150.0,0.00018411,30]
[365010842,1749396221885,150.0,0.0001843,30]
[365010843,1749396305143,150.0,0.00018415,30]
[365010845,1749396387903,150.0,0.00017895,30]
[365010846,1749396393119,162.818115,0.00013699,2]
[365010851,1749396472582,150.0,0.00017903,30]
[365010854,1749396554238,150.0,0.00017754,30]
[365010901,1749396638000,150.0,0.00017792,30]
[365010947,1749396638565,-284.89,0.00016827,2]
[365010948,1749396638581,-187.640295,0.00017866,2]
[365010950,1749396638594,-1393.05153889,0.00018133,2]
[365010952,1749396638606,-250.7541781,0.00018203,2]
[365010954,1749396638619,-160.0,0.00018337,2]
[365010956,1749396638632,-569.77,0.00018356,2]
[365010957,1749396638644,-150.0,0.000189,2]
[365010958,1749396638657,-300.0,0.00018999,2]
[365010959,1749396638670,-300.0,0.00018999,2]
[365010960,1749396638681,-300.0,0.00018999,2]
[365010961,1749396638692,-1200.0,0.00018999,2]
[365010962,1749396638702,-500.0,0.00018999,2]
[365010963,1749396638712,-500.0,0.00018999,2]
[365010964,1749396638721,-342.39315331,0.00018999,2]
[365010965,1749396638731,-15861.46628434,0.00019,2]
[365010966,1749396638741,-500.0,0.00019077,2]